[Event "*** Titled Tuesday Blitz"]
[Site "Chess.com"]
[Date "2021.03.30"]
[Round "1"]
[White "Mazetovic"]
[Black "JoliyRoger"]
[Result "1-0"]
[WhiteElo "2703"]
[BlackElo "2379"]
[TimeControl "180+1"]
[EndTime "10:08:24 PDT"]
[Termination "Mazetovic won on time"]

1. e4 {[%clk 0:02:53.8]} 1... c6 {[%clk 0:02:59.7]} 2. d4 {[%clk 0:02:48.4]}
2... d5 {[%clk 0:03:00.6]} 3. e5 {[%clk 0:02:42.6]} 3... Bf5 {[%clk 0:03:00]} 4.
Nf3 {[%clk 0:02:39]} 4... e6 {[%clk 0:03:00.1]} 5. Be2 {[%clk 0:02:38]} 5... Nd7
{[%clk 0:03:00.5]} 6. c3 {[%clk 0:02:33.4]} 6... Be7 {[%clk 0:03:00]} 7. Bf4
{[%clk 0:02:31.5]} 7... Bg6 {[%clk 0:03:00.4]} 8. Nbd2 {[%clk 0:02:29.4]} 8...
Nh6 {[%clk 0:03:00.8]} 9. a4 {[%clk 0:02:27]} 9... a5 {[%clk 0:02:59.2]} 10. O-O
{[%clk 0:02:24.7]} 10... O-O {[%clk 0:02:58.1]} 11. h3 {[%clk 0:02:24.1]} 11...
f6 {[%clk 0:02:58.4]} 12. exf6 {[%clk 0:02:20.3]} 12... Bxf6 {[%clk 0:02:57.6]}
13. Bh2 {[%clk 0:02:19.8]} 13... Nf7 {[%clk 0:02:57.1]} 14. Re1 {[%clk
0:02:06.6]} 14... Re8 {[%clk 0:02:55.3]} 15. Nb3 {[%clk 0:02:00.7]} 15... b6
{[%clk 0:02:46]} 16. Bd3 {[%clk 0:01:58.8]} 16... Nf8 {[%clk 0:02:32.7]} 17. Nc1
{[%clk 0:01:50.5]} 17... Bh5 {[%clk 0:02:15.2]} 18. g4 {[%clk 0:01:45.3]} 18...
Bg6 {[%clk 0:02:13.7]} 19. Bxg6 {[%clk 0:01:45.3]} 19... Nxg6 {[%clk 0:02:13.4]}
20. Nd3 {[%clk 0:01:46.2]} 20... c5 {[%clk 0:02:01.7]} 21. Nfe5 {[%clk
0:01:41.8]} 21... Bxe5 {[%clk 0:01:29.4]} 22. Nxe5 {[%clk 0:01:40.5]} 22...
Nfxe5 {[%clk 0:01:29.3]} 23. Bxe5 {[%clk 0:01:39.7]} 23... c4 {[%clk 0:00:56.3]}
24. Bg3 {[%clk 0:01:32.9]} 24... Qd7 {[%clk 0:00:55.4]} 25. h4 {[%clk
0:01:28.6]} 25... Rf8 {[%clk 0:00:55.2]} 26. Qd2 {[%clk 0:01:22.3]} 26... Rae8
{[%clk 0:00:51.5]} 27. h5 {[%clk 0:01:21.2]} 27... Ne7 {[%clk 0:00:52.1]} 28. h6
{[%clk 0:01:13.4]} 28... Ng6 {[%clk 0:00:36.1]} 29. Qg5 {[%clk 0:01:03.7]} 29...
gxh6 {[%clk 0:00:26.4]} 30. Qxh6 {[%clk 0:01:02.9]} 30... e5 {[%clk 0:00:26.9]}
31. Qh5 {[%clk 0:00:53]} 31... e4 {[%clk 0:00:20.8]} 32. Qg5 {[%clk 0:00:51.9]}
32... Qf7 {[%clk 0:00:20.6]} 33. Re3 {[%clk 0:00:48.4]} 33... Re6 {[%clk
0:00:20.6]} 34. Qxd5 {[%clk 0:00:44.2]} 34... Nf4 {[%clk 0:00:17.2]} 35. Qg5+
{[%clk 0:00:41.7]} 35... Ng6 {[%clk 0:00:16.1]} 36. Rae1 {[%clk 0:00:39]} 36...
Rf6 {[%clk 0:00:14.1]} 37. R1e2 {[%clk 0:00:35.8]} 37... Rf3 {[%clk 0:00:13.4]}
38. Kg2 {[%clk 0:00:26.7]} 38... Rxe3 {[%clk 0:00:04.2]} 39. Rxe3 {[%clk
0:00:25.8]} 39... Re8 {[%clk 0:00:05.1]} 40. d5 {[%clk 0:00:23.2]} 40... Rd8
{[%clk 0:00:04.5]} 41. d6 {[%clk 0:00:20.9]} 41... Re8 {[%clk 0:00:03.8]} 42.
Qf5 {[%clk 0:00:17.8]} 42... Kg7 {[%clk 0:00:03]} 43. Qb5 {[%clk 0:00:12.6]}
43... Nf4+ {[%clk 0:00:01.9]} 44. Bxf4 {[%clk 0:00:11.7]} 44... Qxf4 {[%clk
0:00:02.5]} 45. Qh5 {[%clk 0:00:11.8]} 45... Rf8 {[%clk 0:00:02.2]} 46. Qh4
{[%clk 0:00:11.9]} 46... Kg8 {[%clk 0:00:02]} 47. Qg3 {[%clk 0:00:11.8]} 47...
Qg5 {[%clk 0:00:02.2]} 48. Rxe4 {[%clk 0:00:11.8]} 48... Qg6 {[%clk 0:00:02.8]}
49. Rd4 {[%clk 0:00:12]} 49... Re8 {[%clk 0:00:01.8]} 50. d7 {[%clk 0:00:12.2]}
50... Rd8 {[%clk 0:00:02.7]} 51. Qd6 {[%clk 0:00:11.6]} 51... Qxd6 {[%clk
0:00:02.9]} 52. Rxd6 {[%clk 0:00:12.5]} 52... Kf7 {[%clk 0:00:03.8]} 53. Rd4
{[%clk 0:00:12.3]} 53... Ke6 {[%clk 0:00:03.8]} 54. f4 {[%clk 0:00:12.9]} 54...
b5 {[%clk 0:00:04.3]} 55. axb5 {[%clk 0:00:12.6]} 55... Rxd7 {[%clk 0:00:03]}
56. Rxd7 {[%clk 0:00:11.9]} 56... Kxd7 {[%clk 0:00:03.9]} 57. f5 {[%clk
0:00:12.2]} 57... Kd6 {[%clk 0:00:04.7]} 58. f6 {[%clk 0:00:12.4]} 58... a4
{[%clk 0:00:05.4]} 59. b6 {[%clk 0:00:11.1]} 59... Kc6 {[%clk 0:00:05.5]} 60. f7
{[%clk 0:00:10.6]} 60... a3 {[%clk 0:00:06.4]} 61. bxa3 {[%clk 0:00:09.8]} 1-0

[Event "*** Titled Tuesday Blitz"]
[Site "Chess.com"]
[Date "2021.03.30"]
[Round "1"]
[White "nikitadovbnya2008"]
[Black "eduardoperalta"]
[Result "1/2-1/2"]
[WhiteElo "2198"]
[BlackElo "2518"]
[TimeControl "180+1"]
[EndTime "10:08:31 PDT"]
[Termination "Game drawn - insufficient material"]

1. e4 {[%clk 0:03:00.9]} 1... c5 {[%clk 0:02:59.4]} 2. Nf3 {[%clk 0:03:01.1]}
2... Nc6 {[%clk 0:02:58.8]} 3. d4 {[%clk 0:03:01.4]} 3... cxd4 {[%clk
0:02:59.7]} 4. Nxd4 {[%clk 0:03:02.3]} 4... Nf6 {[%clk 0:02:56.5]} 5. Nc3 {[%clk
0:03:02.5]} 5... d6 {[%clk 0:02:56.7]} 6. Bg5 {[%clk 0:03:01.4]} 6... e6 {[%clk
0:02:57.1]} 7. Qd2 {[%clk 0:02:59.5]} 7... Be7 {[%clk 0:02:57.2]} 8. O-O-O
{[%clk 0:02:58.6]} 8... O-O {[%clk 0:02:56.8]} 9. f4 {[%clk 0:02:56.5]} 9... h6
{[%clk 0:02:55.8]} 10. Bxf6 {[%clk 0:02:52.7]} 10... Bxf6 {[%clk 0:02:56.7]} 11.
Nxc6 {[%clk 0:02:51.9]} 11... bxc6 {[%clk 0:02:57.6]} 12. Qxd6 {[%clk
0:02:31.1]} 12... Qb6 {[%clk 0:02:56.5]} 13. e5 {[%clk 0:02:28.6]} 13... Rd8
{[%clk 0:02:56.1]} 14. Qa3 {[%clk 0:02:19.7]} 14... Qe3+ {[%clk 0:02:56]} 15.
Kb1 {[%clk 0:02:18.7]} 15... Rxd1+ {[%clk 0:02:56.9]} 16. Nxd1 {[%clk
0:02:18.7]} 16... Qxa3 {[%clk 0:02:57.6]} 17. bxa3 {[%clk 0:02:17.9]} 17... Rb8+
{[%clk 0:02:58]} 18. Kc1 {[%clk 0:02:14.9]} 18... Be7 {[%clk 0:02:58.9]} 19. a4
{[%clk 0:02:11.7]} 19... Rb4 {[%clk 0:02:58.5]} 20. g3 {[%clk 0:02:07.5]} 20...
Rxa4 {[%clk 0:02:56.9]} 21. Nc3 {[%clk 0:02:06.9]} 21... Ba3+ {[%clk 0:02:53]}
22. Kd2 {[%clk 0:02:04.5]} 22... Rd4+ {[%clk 0:02:49.7]} 23. Bd3 {[%clk
0:02:04.4]} 23... c5 {[%clk 0:02:47.6]} 24. Nb5 {[%clk 0:01:49.7]} 24... Ra4
{[%clk 0:02:35.8]} 25. Nd6 {[%clk 0:01:31.2]} 25... Bd7 {[%clk 0:02:26.4]} 26.
Rb1 {[%clk 0:01:25.7]} 26... g5 {[%clk 0:02:20.3]} 27. Rb8+ {[%clk 0:01:21.2]}
27... Kg7 {[%clk 0:02:18.4]} 28. Rb7 {[%clk 0:01:20.6]} 28... Bc6 {[%clk
0:01:56.9]} 29. Rxf7+ {[%clk 0:01:19.8]} 29... Kg8 {[%clk 0:01:56.1]} 30. Bh7+
{[%clk 0:00:51.1]} 30... Kh8 {[%clk 0:01:55.3]} 31. Rc7 {[%clk 0:00:28.7]} 31...
Bd5 {[%clk 0:01:30.8]} 32. Bg6 {[%clk 0:00:20.4]} 32... Bb4+ {[%clk 0:01:10.9]}
33. c3 {[%clk 0:00:17.3]} 33... Rxa2+ {[%clk 0:01:10.9]} 34. Kd3 {[%clk
0:00:15.9]} 34... c4+ {[%clk 0:01:10.8]} 35. Nxc4 {[%clk 0:00:14.7]} 35... Bf8
{[%clk 0:01:08.2]} 36. Nd6 {[%clk 0:00:10.7]} 36... Ra6 {[%clk 0:00:43]} 37. Rc8
{[%clk 0:00:10.3]} 37... Kg7 {[%clk 0:00:41.8]} 38. Be4 {[%clk 0:00:08.3]} 38...
Bxd6 {[%clk 0:00:41.7]} 39. Bxd5 {[%clk 0:00:07.8]} 39... Bxe5 {[%clk 0:00:36]}
40. fxe5 {[%clk 0:00:04]} 40... exd5 {[%clk 0:00:35.5]} 41. Rc7+ {[%clk
0:00:04.5]} 41... Kg6 {[%clk 0:00:34.9]} 42. Kd4 {[%clk 0:00:04.8]} 42... Ra5
{[%clk 0:00:30.8]} 43. Kd3 {[%clk 0:00:01.8]} 43... h5 {[%clk 0:00:30.5]} 44.
Kd4 {[%clk 0:00:02.1]} 44... h4 {[%clk 0:00:30.4]} 45. Rc6+ {[%clk 0:00:02.5]}
45... Kf5 {[%clk 0:00:29.7]} 46. e6 {[%clk 0:00:02.2]} 46... Kf6 {[%clk
0:00:29.6]} 47. Rd6 {[%clk 0:00:01.6]} 47... hxg3 {[%clk 0:00:27.4]} 48. hxg3
{[%clk 0:00:01.5]} 48... Ke7 {[%clk 0:00:25]} 49. Rc6 {[%clk 0:00:01.2]} 49...
Ra4+ {[%clk 0:00:25.9]} 50. Ke5 {[%clk 0:00:01.4]} 50... Re4+ {[%clk 0:00:25.3]}
51. Kf5 {[%clk 0:00:01.5]} 51... Re3 {[%clk 0:00:25]} 52. Kxg5 {[%clk 0:00:02]}
52... Rxg3+ {[%clk 0:00:23.2]} 53. Kf5 {[%clk 0:00:02.5]} 53... Rd3 {[%clk
0:00:23.4]} 54. Ke5 {[%clk 0:00:02.8]} 54... Re3+ {[%clk 0:00:21.9]} 55. Kxd5
{[%clk 0:00:03.1]} 55... Rd3+ {[%clk 0:00:22.5]} 56. Ke5 {[%clk 0:00:03.6]}
56... Re3+ {[%clk 0:00:22.2]} 57. Kd5 {[%clk 0:00:04.2]} 57... Kd8 {[%clk
0:00:21.1]} 58. Rd6+ {[%clk 0:00:03.9]} 58... Ke7 {[%clk 0:00:20.3]} 59. Rd7+
{[%clk 0:00:04.5]} 59... Ke8 {[%clk 0:00:20.5]} 60. Rxa7 {[%clk 0:00:04.8]}
60... Rxc3 {[%clk 0:00:20.8]} 61. Ra8+ {[%clk 0:00:04.9]} 61... Ke7 {[%clk
0:00:21.2]} 62. Ra7+ {[%clk 0:00:05.5]} 62... Ke8 {[%clk 0:00:21.7]} 63. Ra8+
{[%clk 0:00:05.9]} 63... Ke7 {[%clk 0:00:22.2]} 64. Ra7+ {[%clk 0:00:06.5]}
64... Kf6 {[%clk 0:00:23]} 65. e7 {[%clk 0:00:06.5]} 65... Kf7 {[%clk
0:00:21.8]} 66. Kd6 {[%clk 0:00:06]} 66... Rd3+ {[%clk 0:00:20.3]} 67. Kc6
{[%clk 0:00:06.4]} 67... Ke8 {[%clk 0:00:19.7]} 68. Ra8+ {[%clk 0:00:06.3]}
68... Kxe7 {[%clk 0:00:19.6]} 69. Ra7+ {[%clk 0:00:06.9]} 69... Ke6 {[%clk
0:00:20.5]} 70. Ra6 {[%clk 0:00:07.3]} 70... Rd6+ {[%clk 0:00:19.8]} 71. Kb7
{[%clk 0:00:07.7]} 71... Rxa6 {[%clk 0:00:19.7]} 72. Kxa6 {[%clk 0:00:08.6]}
1/2-1/2

[Event "*** Titled Tuesday Blitz"]
[Site "Chess.com"]
[Date "2021.03.30"]
[Round "1"]
[White "Yurovskykh_Oleksandr"]
[Black "MarkoPe"]
[Result "1-0"]
[WhiteElo "2524"]
[BlackElo "2186"]
[TimeControl "180+1"]
[EndTime "10:08:31 PDT"]
[Termination "Yurovskykh_Oleksandr won on time"]

1. d4 {[%clk 0:02:59]} 1... d5 {[%clk 0:02:54.6]} 2. Bf4 {[%clk 0:02:58.4]} 2...
Nf6 {[%clk 0:02:50.2]} 3. e3 {[%clk 0:02:58.5]} 3... e6 {[%clk 0:02:50.5]} 4.
Nf3 {[%clk 0:02:57.7]} 4... Bd6 {[%clk 0:02:45.5]} 5. Bg3 {[%clk 0:02:57.1]}
5... O-O {[%clk 0:02:45.5]} 6. Nbd2 {[%clk 0:02:50.2]} 6... c5 {[%clk
0:02:45.1]} 7. Bxd6 {[%clk 0:02:45.3]} 7... Qxd6 {[%clk 0:02:44.3]} 8. dxc5
{[%clk 0:02:45.6]} 8... Qxc5 {[%clk 0:02:45]} 9. c4 {[%clk 0:02:45.8]} 9... Nc6
{[%clk 0:02:38.8]} 10. Rc1 {[%clk 0:02:44.7]} 10... Qb4 {[%clk 0:02:29.2]} 11.
Qc2 {[%clk 0:02:29.5]} 11... e5 {[%clk 0:02:11.5]} 12. cxd5 {[%clk 0:02:07.7]}
12... Nxd5 {[%clk 0:02:10.7]} 13. Bc4 {[%clk 0:02:07.3]} 13... Nf6 {[%clk
0:02:01.8]} 14. a3 {[%clk 0:01:55.5]} 14... Qe7 {[%clk 0:01:59.6]} 15. O-O
{[%clk 0:01:32.4]} 15... Bg4 {[%clk 0:01:59.3]} 16. Ng5 {[%clk 0:01:32.2]} 16...
Bh5 {[%clk 0:01:49.8]} 17. Bb5 {[%clk 0:01:20.3]} 17... Rac8 {[%clk 0:01:48.6]}
18. Qa4 {[%clk 0:00:51]} 18... Rfd8 {[%clk 0:01:38.4]} 19. Nde4 {[%clk
0:00:36.2]} 19... Nd5 {[%clk 0:01:23]} 20. Bxc6 {[%clk 0:00:27.3]} 20... bxc6
{[%clk 0:01:22.9]} 21. Rxc6 {[%clk 0:00:20.8]} 21... Rxc6 {[%clk 0:01:05.7]} 22.
Qxc6 {[%clk 0:00:21.7]} 22... f5 {[%clk 0:01:06]} 23. Ng3 {[%clk 0:00:16]} 23...
Qxg5 {[%clk 0:01:04.2]} 24. Nxh5 {[%clk 0:00:12.4]} 24... Qxh5 {[%clk
0:01:04.1]} 25. Qe6+ {[%clk 0:00:12.8]} 25... Qf7 {[%clk 0:01:02.1]} 26. Qxe5
{[%clk 0:00:13.2]} 26... Qf6 {[%clk 0:00:54.2]} 27. Qg3 {[%clk 0:00:12.9]} 27...
Qxb2 {[%clk 0:00:53.2]} 28. Qh4 {[%clk 0:00:12.7]} 28... Qf6 {[%clk 0:00:49.7]}
29. Qc4 {[%clk 0:00:12.8]} 29... Qf7 {[%clk 0:00:45.9]} 30. g3 {[%clk
0:00:11.9]} 30... h6 {[%clk 0:00:45.4]} 31. Rd1 {[%clk 0:00:08.4]} 31... Kh8
{[%clk 0:00:45.5]} 32. Qd4 {[%clk 0:00:08.2]} 32... Rd7 {[%clk 0:00:42]} 33. Qa4
{[%clk 0:00:08.3]} 33... Nb6 {[%clk 0:00:40.3]} 34. Rxd7 {[%clk 0:00:07.6]}
34... Qxd7 {[%clk 0:00:38.2]} 35. Qa5 {[%clk 0:00:08.2]} 35... Kh7 {[%clk
0:00:27.5]} 36. h4 {[%clk 0:00:08.2]} 36... Kg6 {[%clk 0:00:16.8]} 37. Kh2
{[%clk 0:00:08.1]} 37... Qa4 {[%clk 0:00:14.8]} 38. Qe5 {[%clk 0:00:06.4]} 38...
Qxa3 {[%clk 0:00:14.5]} 39. Qe6+ {[%clk 0:00:05.9]} 39... Kh7 {[%clk 0:00:14.7]}
40. Qxf5+ {[%clk 0:00:06.4]} 40... Kg8 {[%clk 0:00:15.1]} 41. Qe6+ {[%clk
0:00:06.8]} 41... Kh8 {[%clk 0:00:12.8]} 42. Qe8+ {[%clk 0:00:07]} 42... Kh7
{[%clk 0:00:13]} 43. Qe4+ {[%clk 0:00:07.8]} 43... g6 {[%clk 0:00:10.4]} 44.
Qb7+ {[%clk 0:00:08.3]} 44... Kg8 {[%clk 0:00:10.5]} 45. Qb8+ {[%clk 0:00:08.8]}
45... Qf8 {[%clk 0:00:09.5]} 46. Qxa7 {[%clk 0:00:06.9]} 46... Nc8 {[%clk
0:00:09.8]} 47. Qa2+ {[%clk 0:00:06.2]} 47... Qf7 {[%clk 0:00:09.6]} 48. Qe2
{[%clk 0:00:07.1]} 48... Ne7 {[%clk 0:00:08.9]} 49. Kg1 {[%clk 0:00:07.8]} 49...
Nf5 {[%clk 0:00:08.5]} 50. Qb2 {[%clk 0:00:08.3]} 50... Qg7 {[%clk 0:00:07.2]}
51. Qb8+ {[%clk 0:00:08.7]} 51... Qf8 {[%clk 0:00:07.4]} 52. Qf4 {[%clk
0:00:09.6]} 52... Qf7 {[%clk 0:00:07.5]} 53. h5 {[%clk 0:00:10.2]} 53... gxh5
{[%clk 0:00:06.7]} 54. e4 {[%clk 0:00:10.7]} 54... Nd6 {[%clk 0:00:05.9]} 55.
Qxd6 {[%clk 0:00:10.7]} 55... h4 {[%clk 0:00:04.5]} 56. Qd8+ {[%clk 0:00:10.9]}
56... Kg7 {[%clk 0:00:04.4]} 57. Qxh4 {[%clk 0:00:11.8]} 57... Qa2 {[%clk
0:00:03.9]} 58. Qg4+ {[%clk 0:00:12.2]} 58... Kh7 {[%clk 0:00:03.5]} 59. Qf4
{[%clk 0:00:13.1]} 59... Qb1+ {[%clk 0:00:02.9]} 60. Kg2 {[%clk 0:00:14]} 60...
Qd3 {[%clk 0:00:02.2]} 61. Qf5+ {[%clk 0:00:14.4]} 61... Kg7 {[%clk 0:00:02.6]}
62. Qd5 {[%clk 0:00:14.7]} 62... Kg6 {[%clk 0:00:02.8]} 63. Qxd3 {[%clk
0:00:14.7]} 1-0

[Event "*** Titled Tuesday Blitz"]
[Site "Chess.com"]
[Date "2021.03.30"]
[Round "1"]
[White "KNCP_719"]
[Black "Eloist"]
[Result "1-0"]
[WhiteElo "2627"]
[BlackElo "2334"]
[TimeControl "180+1"]
[EndTime "10:08:32 PDT"]
[Termination "KNCP_719 won by resignation"]

1. e4 {[%clk 0:03:00.9]} 1... e6 {[%clk 0:02:56.8]} 2. c4 {[%clk 0:03:00.7]}
2... d5 {[%clk 0:02:57]} 3. cxd5 {[%clk 0:03:01.6]} 3... exd5 {[%clk 0:02:57.3]}
4. exd5 {[%clk 0:03:02.5]} 4... Nf6 {[%clk 0:02:57.1]} 5. Nc3 {[%clk 0:03:01.4]}
5... Nxd5 {[%clk 0:02:56.2]} 6. Nf3 {[%clk 0:03:01.7]} 6... Be7 {[%clk
0:02:55.9]} 7. d4 {[%clk 0:03:02.1]} 7... O-O {[%clk 0:02:55.3]} 8. Bd3 {[%clk
0:03:02.5]} 8... c6 {[%clk 0:02:55.2]} 9. h3 {[%clk 0:02:59.7]} 9... Be6 {[%clk
0:02:50.1]} 10. O-O {[%clk 0:02:59.5]} 10... Nd7 {[%clk 0:02:44]} 11. Ne4 {[%clk
0:02:47.8]} 11... N5f6 {[%clk 0:02:36.6]} 12. Re1 {[%clk 0:02:36]} 12... Nxe4
{[%clk 0:02:32.8]} 13. Bxe4 {[%clk 0:02:34.3]} 13... Nf6 {[%clk 0:02:29.6]} 14.
Bc2 {[%clk 0:02:31.3]} 14... Re8 {[%clk 0:02:22.8]} 15. Bg5 {[%clk 0:02:22.4]}
15... Nd5 {[%clk 0:02:12.4]} 16. Bxe7 {[%clk 0:01:53.7]} 16... Rxe7 {[%clk
0:02:10.7]} 17. Ng5 {[%clk 0:01:45.9]} 17... g6 {[%clk 0:01:49]} 18. Nxe6 {[%clk
0:01:44.4]} 18... Rxe6 {[%clk 0:01:47.8]} 19. Rxe6 {[%clk 0:01:43.7]} 19... fxe6
{[%clk 0:01:48.7]} 20. Qg4 {[%clk 0:01:23.4]} 20... Qf6 {[%clk 0:01:46]} 21. Re1
{[%clk 0:01:23]} 21... Re8 {[%clk 0:01:09.7]} 22. Bb3 {[%clk 0:01:23.1]} 22...
Kg7 {[%clk 0:01:08.1]} 23. Bxd5 {[%clk 0:00:46.2]} 23... cxd5 {[%clk 0:01:05.8]}
24. Re5 {[%clk 0:00:35.8]} 24... Rc8 {[%clk 0:00:32.3]} 25. g3 {[%clk
0:00:07.5]} 25... Rc2 {[%clk 0:00:26.3]} 26. Re2 {[%clk 0:00:06.5]} 26... h5
{[%clk 0:00:22.8]} 27. Qxe6 {[%clk 0:00:03.8]} 27... Qxe6 {[%clk 0:00:16.8]} 28.
Rxe6 {[%clk 0:00:04.7]} 28... Rxb2 {[%clk 0:00:16.7]} 29. Rd6 {[%clk 0:00:05]}
29... Rxa2 {[%clk 0:00:15.3]} 30. Rxd5 {[%clk 0:00:05.5]} 30... Kf6 {[%clk
0:00:12.8]} 31. Rd6+ {[%clk 0:00:04.2]} 31... Kf5 {[%clk 0:00:12.9]} 32. Kg2
{[%clk 0:00:04]} 32... b5 {[%clk 0:00:11.7]} 33. Rd5+ {[%clk 0:00:04.5]} 33...
Ke4 {[%clk 0:00:11.9]} 34. Rxb5 {[%clk 0:00:04.7]} 34... Kxd4 {[%clk 0:00:12.2]}
35. Rg5 {[%clk 0:00:04.6]} 35... Ra6 {[%clk 0:00:10.9]} 36. Rb5 {[%clk
0:00:04.2]} 36... Rb6 {[%clk 0:00:10.4]} 37. Ra5 {[%clk 0:00:04.3]} 37... a6
{[%clk 0:00:10.7]} 38. f4 {[%clk 0:00:04.7]} 38... Kc4 {[%clk 0:00:10.8]} 39.
Kf3 {[%clk 0:00:04.2]} 39... Kb4 {[%clk 0:00:11]} 40. Ra1 {[%clk 0:00:04.1]}
40... a5 {[%clk 0:00:11.9]} 41. g4 {[%clk 0:00:03.3]} 41... h4 {[%clk
0:00:11.2]} 42. f5 {[%clk 0:00:03.3]} 42... gxf5 {[%clk 0:00:10]} 43. gxf5
{[%clk 0:00:03.9]} 43... Rc6 {[%clk 0:00:10.1]} 44. Rb1+ {[%clk 0:00:04]} 44...
Ka3 {[%clk 0:00:08.8]} 45. Ra1+ {[%clk 0:00:04.6]} 45... Kb4 {[%clk 0:00:08.3]}
46. Rb1+ {[%clk 0:00:05.2]} 46... Ka3 {[%clk 0:00:08.2]} 47. Ke4 {[%clk
0:00:04.5]} 47... a4 {[%clk 0:00:07.7]} 48. Kd5 {[%clk 0:00:04.1]} 48... Rc2
{[%clk 0:00:06.2]} 49. Rf1 {[%clk 0:00:03.7]} 49... Kb3 {[%clk 0:00:05.6]} 50.
f6 {[%clk 0:00:03.8]} 50... Rc8 {[%clk 0:00:03.4]} 51. f7 {[%clk 0:00:04]} 51...
Rf8 {[%clk 0:00:01.6]} 52. Ke6 {[%clk 0:00:04.2]} 52... a3 {[%clk 0:00:01.9]}
53. Ke7 {[%clk 0:00:04.7]} 53... Rh8 {[%clk 0:00:01.7]} 54. f8=Q {[%clk
0:00:04.8]} 54... Rxf8 {[%clk 0:00:01.4]} 55. Kxf8 {[%clk 0:00:05.5]} 55... a2
{[%clk 0:00:01.8]} 56. Kg7 {[%clk 0:00:05.8]} 56... Kb2 {[%clk 0:00:02]} 57.
Rf2+ {[%clk 0:00:06]} 57... Kb1 {[%clk 0:00:01.6]} 58. Rf1+ {[%clk 0:00:06.4]}
58... Kb2 {[%clk 0:00:02]} 59. Kg6 {[%clk 0:00:07.1]} 59... a1=Q {[%clk
0:00:01.5]} 60. Rxa1 {[%clk 0:00:07.3]} 60... Kxa1 {[%clk 0:00:02.3]} 61. Kg5
{[%clk 0:00:08.2]} 61... Kb2 {[%clk 0:00:02.8]} 62. Kxh4 {[%clk 0:00:09.1]}
62... Kc3 {[%clk 0:00:03.2]} 63. Kg5 {[%clk 0:00:09.8]} 63... Kd4 {[%clk
0:00:03.6]} 64. Kg6 {[%clk 0:00:10]} 64... Ke5 {[%clk 0:00:04.4]} 65. h4 {[%clk
0:00:10.4]} 65... Ke6 {[%clk 0:00:04.7]} 66. h5 {[%clk 0:00:10.7]} 66... Ke7
{[%clk 0:00:05.6]} 67. Kg7 {[%clk 0:00:11.2]} 67... Ke8 {[%clk 0:00:05.1]} 68.
h6 {[%clk 0:00:12.1]} 1-0